bitfinex/quotes_ETHUSD_20220123
["timestamp","ask_amount","ask_price","bid_price","bid_amount"]
[1642903867864,0.00113685,2434.9,2434.6,1.26462315]
[1642903868063,0.492,2434.8,2434.6,1.26462315]
[1642903869068,0.492,2434.8,2434.2,5.34442219]
[1642903869265,2.5,2434.5,2434.3,3.49473639]
[1642903869468,0.492,2434.8,2434.3,3.49473639]
[1642903869469,0.492,2434.8,2434.6,4.68576658]
[1642903871215,0.492,2434.8,2434.4,1.26462315]
[1642903871619,0.492,2434.8,2434.5,0.00113685]
[1642903872015,1.52018,2434.8,2434.5,0.00113685]
[1642903872215,1.02822,2434.6,2433.6,0.2279934]
[1642903872413,0.492,2434.5,2434.0,0.00284211]
[1642903873013,0.792,2434.5,2434.0,0.00284211]
[1642903873215,0.492,2434.5,2434.0,0.00284211]
[1642903874083,0.492,2434.5,2434.0,0.156213]
[1642903874275,0.492,2434.5,2434.0,0.00284211]
[1642903874472,0.492,2434.5,2434.1,0.00227369]
[1642903874673,0.492,2434.5,2433.6,0.2279934]
[1642903874674,1.0284079,2434.3,2433.6,0.2279934]
[1642903874874,0.492,2434.2,2433.6,0.2279934]
[1642903875274,1.90672558,2434.5,2433.6,0.2279934]
[1642903875473,0.492,2434.4,2434.0,0.00227369]
[1642903875875,1.52039,2434.4,2434.0,0.00227369]
[1642903876280,0.492,2434.9,2434.0,0.00227369]
[1642903876579,0.00227369,2434.8,2434.1,0.01242265]
[1642903877077,1.30268867,2434.6,2434.2,1.18327556]
[1642903877275,0.00170527,2434.7,2434.2,1.18327556]
[1642903877479,0.492,2434.9,2434.2,1.18327556]
[1642903877718,0.00113685,2434.6,2434.2,1.18327556]
[1642903877918,0.00113685,2434.6,2434.2,1.13327556]
[1642903878318,0.00170527,2434.5,2434.2,1.13327556]
[1642903878720,0.00113685,2434.4,2434.2,1.13327556]
[1642903879128,0.00341054,2434.8,2434.2,1.13327556]
[1642903879519,0.492,2434.9,2434.2,1.13327556]
[1642903879520,1.27921225,2434.6,2434.2,1.13327556]
[1642903879718,1.77121225,2434.6,2434.2,1.13327556]
[1642903880020,0.00170527,2434.5,2434.2,1.13327556]
[1642903880420,0.00113685,2434.4,2434.3,0.00589748]
[1642903882869,2.05642,2435.0,2434.5,0.0022737]
[1642903882870,0.492,2434.9,2434.5,0.0022737]
[1642903883268,0.00170527,2434.7,2434.5,0.0022737]
[1642903883473,0.492,2434.6,2434.5,0.0022737]
[1642903883768,0.49313685,2434.6,2434.5,0.0022737]
[1642903883967,1.75023092,2434.6,2434.5,0.0022737]
[1642903885313,0.49313685,2434.6,2434.5,0.0022737]
[1642903885514,0.49313685,2434.6,2434.5,0.00815403]
[1642903885717,0.00113685,2434.6,2434.5,0.00815403]
[1642903885915,0.492,2435.1,2435.0,0.00319102]
[1642903886314,1.73562705,2435.1,2435.0,0.00319102]
[1642903888718,0.49484211,2435.1,2435.0,0.00319102]
[1642903889372,0.00284211,2435.1,2435.0,0.00319102]
[1642903889772,0.00284211,2435.1,2435.0,1.44514792]
[1642903890570,0.00284211,2435.1,2435.0,1.45098539]
[1642903891569,0.00284211,2435.1,2435.0,3.80084526]
[1642903891768,0.00284211,2435.1,2435.0,7.29525606]
[1642903894713,4.211e-05,2435.1,2435.0,8.29525606]
[1642903894920,4.211e-05,2435.1,2435.0,9.19974153]
[1642903895314,0.492,2436.3,2436.0,0.00075789]
[1642903895718,0.00625266,2436.2,2436.0,0.00075789]
[1642903896124,0.00568424,2436.1,2436.0,1.18234293]
[1642903897475,0.00568424,2436.1,2436.0,1.17303293]
[1642903897870,0.00568424,2436.1,2436.0,3.39075199]
[1642903898071,0.00568424,2436.1,2436.0,1.17303293]
[1642903900523,0.00568424,2436.1,2436.0,1.17878473]
[1642903901523,2.50568424,2436.1,2436.0,1.17878473]
[1642903902021,0.00568424,2436.1,2436.0,1.17878473]
[1642903905379,0.00568424,2436.1,2436.0,0.0057518]
[1642903905977,0.49768424,2436.1,2435.5,3.7047]
[1642903906274,0.00511582,2436.0,2435.7,1.20720789]
[1642903906474,0.492,2435.9,2435.7,1.20720789]
[1642903906674,0.49654739,2435.9,2435.7,1.20720789]
[1642903906875,0.00397897,2435.8,2435.7,1.20720789]
[1642903908424,0.00397897,2435.8,2435.7,1.41229789]
[1642903908624,0.00397897,2435.8,2435.7,5.18039789]
[1642903909224,0.00397897,2435.8,2435.7,4.97530789]
[1642903909923,0.00397897,2435.8,2435.7,5.18039789]
[1642903910532,0.00397897,2435.8,2435.7,5.48545641]
[1642903911329,0.00397897,2435.8,2435.7,29.37545641]
[1642903911576,0.00397897,2435.8,2435.7,30.67545641]
[1642903911775,0.00397897,2435.8,2435.7,6.78545641]
[1642903912577,7.897e-05,2435.8,2435.7,5.57824852]
[1642903912776,7.897e-05,2435.8,2435.7,5.59030952]
[1642903913081,7.897e-05,2435.8,2435.7,32.97333394]
[1642903913275,7.897e-05,2435.8,2435.7,34.19423394]
[1642903913479,7.897e-05,2435.8,2435.7,29.20523394]
[1642903913675,7.897e-05,2435.8,2435.7,31.79455292]
[1642903913876,7.897e-05,2435.8,2435.7,25.71220952]
[1642903914576,7.897e-05,2435.8,2435.7,29.20516798]
[1642903915076,7.897e-05,2435.8,2435.7,29.2051198]
[1642903915325,2.5,2437.0,2436.1,0.00072103]
[1642903915527,2.5,2437.0,2436.9,1.41447731]
[1642903915729,2.5,2437.0,2436.9,1.13991291]
[1642903919478,2.5,2437.0,2436.3,1.1728]
[1642903919675,2.5,2437.0,2436.2,3.8856]
[1642903919676,0.492,2436.9,2436.2,3.8856]
[1642903919874,3.49439367,2436.9,2436.1,0.16482103]
[1642903920080,4.05245162,2436.8,2436.1,0.00072103]
[1642903920274,0.492,2436.7,2436.1,0.00072103]
[1642903920474,0.58396762,2436.7,2436.1,0.00072103]
[1642903920671,0.0913992,2436.6,2436.1,0.00072103]
[1642903920879,2.0550711,2436.4,2436.1,0.00072103]
[1642903921073,2.0550711,2436.4,2435.0,0.00469882]
[1642903921074,2.8,2436.2,2435.0,0.00469882]
[1642903921274,0.792,2436.3,2435.0,0.00469882]
[1642903921275,3.75894384,2436.1,2435.0,0.00469882]
[1642903921475,0.492,2436.0,2435.1,0.00397897]
[1642903921679,0.49313685,2436.0,2435.1,0.00397897]
[1642903921880,0.08685181,2435.9,2435.1,0.00397897]
[1642903922077,0.492,2435.8,2435.4,1.20720789]
[1642903922380,0.492,2435.8,2435.5,0.00170527]
[1642903925427,0.492,2435.8,2435.7,0.00505852]
[1642903925627,1.55,2435.6,2435.0,0.00319102]
[1642903925827,2.5,2435.3,2435.0,0.00319102]
[1642903926032,0.492,2435.2,2435.1,0.0022737]
[1642903926676,0.492,2435.2,2435.0,0.00319102]
[1642903926877,1.52005,2435.2,2434.6,0.0012325]
[1642903927177,1.52005,2435.2,2434.7,0.00227369]
[1642903927382,1.52005,2435.2,2434.9,1.20720789]
[1642903927577,0.492,2435.2,2434.9,1.20720789]
[1642903928981,0.492,2435.2,2434.7,0.00227369]
[1642903929181,0.492,2435.2,2434.5,4.22437989]
[1642903929381,0.492,2435.2,2434.5,4.52437989]
[1642903929582,0.00227369,2435.1,2434.5,4.52437989]
[1642903929780,0.492,2435.0,2434.5,4.52437989]
[1642903929982,0.49370527,2435.0,2434.5,4.52437989]
[1642903930228,0.49370527,2435.0,2434.6,1.20720789]
[1642903930229,0.00113685,2434.9,2434.6,1.20720789]
[1642903930624,0.492,2434.8,2434.6,1.20720789]
[1642903932027,0.492,2434.8,2434.5,0.0022737]
[1642903935573,0.492,2434.8,2434.7,0.00451189]
[1642903936378,2.5,2434.5,2434.0,3.7606]
[1642903936875,2.5,2434.5,2434.1,3.49890036]
[1642903937074,0.492,2434.8,2434.1,0.00341054]
[1642903937277,0.47321441,2434.4,2434.2,0.00284212]
[1642903937756,0.96521441,2434.4,2434.2,0.00284212]
[1642903937941,0.96521441,2434.4,2434.0,0.00397896]
[1642903938141,0.96521441,2434.4,2434.3,0.00227369]
[1642903938343,0.96521441,2434.4,2434.0,0.00397896]
[1642903938544,2.56521441,2434.4,2433.9,0.02]
[1642903938745,2.8,2434.3,2433.9,0.02]
[1642903938948,2.8,2434.3,2433.6,0.2279934]
[1642903938949,1.5205,2434.2,2433.6,0.2279934]
[1642903939142,2.0569491,2434.1,2433.6,0.1779934]
[1642903939344,0.492,2434.0,2433.7,0.00170527]
[1642903939542,1.85210393,2434.0,2433.7,0.00170527]
[1642903940348,1.65,2433.9,2433.6,0.1279934]
[1642903940543,1.65,2433.9,2433.8,0.00402509]
[1642903940544,1.65113684,2433.9,2433.8,0.00402509]
[1642903940743,1.65113684,2433.9,2433.0,5.65891849]
[1642903940744,0.49313684,2433.9,2433.0,5.65891849]
[1642903941144,0.47321441,2433.4,2433.1,0.73740403]
[1642903941346,0.47321441,2433.4,2433.1,0.00341055]
[1642903941592,0.47321441,2433.4,2432.8,0.02]
[1642903941593,1.8,2433.3,2432.8,0.02]
[1642903941782,1.8,2433.3,2432.1,0.0015078]
[1642903941783,1.95,2433.1,2432.1,0.0015078]
[1642903941981,0.492,2433.0,2432.0,3.51691769]
[1642903942182,2.4,2433.3,2432.2,0.00397897]
[1642903942381,1.33949024,2432.3,2432.2,0.00397897]
[1642903942584,0.492,2432.3,2432.2,0.00397897]
[1642903942781,0.492,2432.3,2431.9,0.9480122]
[1642903942981,4.1165738,2432.9,2431.9,0.9480122]
[1642903942982,0.492,2432.8,2432.1,0.00227369]
[1642903943181,0.492,2432.8,2432.4,1.54251081]
[1642903943382,0.49370527,2432.8,2432.4,1.54251081]
[1642903943983,0.00170527,2432.8,2432.4,1.54251081]
[1642903944882,0.00170527,2432.8,2432.4,1.04251081]
[1642903945526,0.00170527,2432.8,2432.6,0.00362495]
[1642903946322,0.00170527,2432.8,2432.7,3.00509]
[1642903946520,0.00170527,2432.8,2432.7,6.22936186]
[1642903946726,5.27e-06,2432.8,2432.7,7.39366186]
[1642903946920,5.27e-06,2432.8,2432.7,4.48192697]
[1642903947527,5.27e-06,2432.8,2432.7,0.1643]
[1642903947723,5.27e-06,2432.8,2432.6,0.00362495]
[1642903947724,0.49200527,2432.8,2432.6,0.00362495]
[1642903947921,2.8,2432.7,2432.1,0.00227369]
[1642903948124,2.8,2432.7,2431.1,5.24652648]
[1642903948125,3.292,2432.6,2430.8,1.52927866]
[1642903948325,6.155,2431.9,2431.8,0.00340527]
[1642903948532,2.05958,2431.0,2430.1,3.6645]
[1642903948723,2.05958,2431.0,2430.2,3.50012391]
[1642903948724,0.492,2430.9,2430.2,3.50012391]
[1642903949276,0.492,2430.9,2429.6,3.33950395]
[1642903949474,0.00341055,2430.8,2429.7,3.45085451]
[1642903949773,0.00341055,2430.8,2429.1,4.27196224]
[1642903949774,1.0303596,2429.7,2428.7,5.24652648]
[1642903949976,2.8,2429.8,2428.2,3.69699331]
[1642903949977,0.492,2429.6,2428.2,3.69699331]
[1642903950176,0.492,2429.5,2428.8,0.00511581]
[1642903950376,2.8,2429.8,2428.8,0.00511581]
[1642903950377,0.492,2429.4,2428.8,0.00511581]
[1642903950575,0.492,2429.3,2428.4,1.48832251]
[1642903950779,0.492,2429.3,2428.5,1.26274117]
[1642903950974,0.00397896,2429.2,2428.5,1.21274117]
[1642903951174,0.492,2429.1,2428.5,1.21274117]
[1642903951379,0.492,2429.1,2427.7,2.02620974]
[1642903951380,0.1645,2429.0,2427.7,0.01262825]
[1642903951579,0.492,2428.9,2427.7,0.01262825]
[1642903951786,2.8,2428.5,2427.1,0.1647]
[1642903951978,1.0311205,2428.1,2427.1,0.1647]
[1642903952176,41.54918124,2428.0,2427.1,1.47939611]
[1642903952374,8.19757,2427.8,2426.7,5.25617302]
[1642903952575,8.19757,2427.8,2426.6,0.0128305]
[1642903952576,6.155,2427.6,2426.6,0.0128305]
[1642903952831,6.155,2427.6,2426.4,3.98969419]
[1642903952832,0.6568,2427.5,2426.4,3.98969419]
[1642903953130,1.52317,2427.9,2427.5,1.21383303]
[1642903953326,1.3169294,2427.8,2427.5,2.59051009]
[1642903953526,0.492,2427.7,2427.5,2.59051009]
[1642903953725,3.0937,2428.3,2427.5,2.59051009]
[1642903953726,0.492,2427.6,2427.5,2.59051009]
[1642903953927,0.1647,2428.4,2427.5,2.59051009]
[1642903953928,0.492,2428.4,2427.6,3.86753452]
[1642903954130,1.43354496,2429.9,2428.3,0.01242496]
[1642903954131,0.492,2429.0,2428.3,0.01242496]
[1642903954332,0.492,2429.1,2428.8,0.01217355]
[1642903954532,0.492,2429.0,2428.9,1.50170211]
[1642903954828,0.492,2429.0,2428.0,2.53647688]
[1642903955025,0.492,2429.0,2428.1,1.0]
[1642903955226,0.00625266,2428.9,2428.1,1.0]
[1642903955427,0.492,2428.8,2428.1,1.0]
[1642903955626,0.49768424,2428.8,2428.2,0.20509]
[1642903955826,0.00511581,2428.7,2428.2,0.20509]
[1642903956025,0.49711581,2428.7,2428.3,1.19638212]
[1642903956229,2.06073,2430.0,2428.3,1.19638212]
[1642903956230,0.8988258,2429.9,2428.5,0.01213797]
[1642903956485,0.62242586,2429.9,2428.5,2.34352485]
[1642903956781,0.62242586,2429.9,2429.3,1.19334025]
[1642903956782,0.00397897,2429.4,2429.3,1.19334025]
[1642903956985,0.00397897,2429.4,2428.6,0.66959]
[1642903957184,0.00397897,2429.4,2428.7,1.11401726]
[1642903957379,0.00341054,2429.3,2428.7,1.11401726]
[1642903957782,0.00284212,2429.2,2428.7,1.11401726]
[1642903957982,0.00284212,2429.2,2428.9,1.18714513]
[1642903958180,0.0022737,2429.1,2428.7,1.11401726]
[1642903958381,0.1623,2429.0,2428.4,0.00170527]
[1642903958581,1.28153708,2429.0,2428.4,0.00170527]
[1642903958781,0.00113685,2428.9,2428.3,0.00227369]
[1642903958983,0.00113685,2428.9,2428.0,2.29957112]
[1642903959181,0.00113685,2428.9,2428.7,1.42530305]
[1642903959383,0.00113685,2428.9,2428.8,1.45689931]
[1642903959690,0.00113685,2428.9,2428.8,1.82648931]
[1642903959691,3.685e-05,2428.9,2428.8,1.82648931]
[1642903959882,3.685e-05,2428.9,2428.8,0.36959]
[1642903960081,3.685e-05,2428.9,2428.8,0.20509]
[1642903960526,3.685e-05,2428.9,2428.8,3.30509]
[1642903960923,3.685e-05,2428.9,2428.8,4.30509]
[1642903961727,3.685e-05,2428.9,2428.8,6.74068364]
[1642903961925,3.685e-05,2428.9,2428.8,6.90518364]
[1642903962125,6.68490647,2430.5,2430.2,3.41983884]
[1642903962126,0.01218127,2430.5,2430.2,3.41983884]
[1642903962334,4.74393306,2431.2,2430.2,3.41983884]
[1642903962628,6.0,2431.2,2430.2,3.41983884]
[1642903962824,0.01233803,2430.7,2430.2,3.41983884]
[1642903963024,1.25040132,2430.4,2430.2,3.31983884]
[1642903963224,0.492,2430.6,2430.2,3.31983884]
[1642903963423,0.00795793,2430.3,2430.2,3.31983884]
[1642903963624,0.00909477,2430.5,2430.2,3.31983884]
[1642903963825,0.00795793,2430.3,2430.2,3.31983884]
[1642903964080,0.00852635,2430.4,2430.2,3.31983884]
[1642903964281,0.492,2430.6,2430.2,3.31983884]
[1642903964282,0.00795793,2430.3,2430.2,3.31983884]
[1642903964680,1.50438489,2430.3,2430.2,3.31983884]
[1642903965082,2.3,2430.2,2428.9,3.8428]
[1642903965482,0.00682108,2430.1,2428.9,3.8428]
[1642903965683,0.00682108,2430.1,2428.9,3.6783]
[1642903965884,0.00625266,2430.0,2428.9,3.6783]
[1642903966085,1.17090906,2429.8,2429.5,1.24897311]
[1642903966484,0.00454739,2429.7,2429.5,1.24897311]
[1642903966884,0.00397896,2429.6,2429.5,1.24897311]
[1642903967289,0.00397896,2429.6,2428.9,3.6783]
[1642903967591,4.0685306,2430.2,2428.9,3.6783]
[1642903967592,0.00341054,2429.5,2428.9,3.6783]
[1642903968024,0.00284212,2429.4,2428.9,3.6783]
[1642903968223,0.3,2429.9,2428.9,3.6783]
[1642903968423,1.42506572,2430.0,2429.3,1.12622083]
[1642903968626,0.00284211,2429.9,2429.3,1.12622083]
[1642903969024,0.00227369,2429.8,2429.3,1.12622083]
[1642903969424,0.13819997,2430.4,2429.4,1.15148771]
[1642903969425,0.00170527,2429.7,2429.4,1.15148771]
[1642903969826,0.00113684,2429.6,2429.4,1.15148771]
[1642903970025,0.13819997,2430.4,2429.4,1.15148771]
[1642903970026,0.13819997,2430.4,2429.6,0.00227368]
[1642903970235,0.13819997,2430.4,2429.9,1.13859055]
[1642903970429,0.00397897,2430.3,2429.9,1.13859055]
[1642903970628,0.00397897,2430.3,2429.6,0.00227368]
[1642903970629,0.00397897,2430.3,2429.7,1.45896442]
[1642903970829,0.00341054,2430.2,2429.7,1.45896442]
[1642903971028,0.00341054,2430.2,2429.7,1.25896442]
[1642903971227,0.00284212,2430.1,2429.7,1.25896442]
[1642903971472,0.00284212,2430.1,2429.7,1.76405442]
[1642903971772,0.5048326,2431.4,2429.7,1.76405442]
[1642903971773,0.0022737,2430.0,2429.8,23.89]
[1642903971976,0.0022737,2430.0,2429.9,5.06900159]
[1642903972175,9.06506053,2431.3,2429.9,3.8005]
[1642903972375,11.07323416,2431.3,2429.9,3.8005]
[1642903972573,0.00625266,2430.7,2429.9,3.8005]
[1642903972876,0.00568424,2430.6,2429.9,3.8005]
[1642903973272,0.492,2431.2,2429.9,3.8005]
[1642903973273,0.00511581,2430.5,2429.9,3.8005]
[1642903973573,0.492,2431.2,2430.4,1.13596718]
[1642903973972,0.00682109,2430.8,2430.4,1.13596718]
[1642903974372,0.00625266,2430.7,2430.4,1.13596718]
[1642903974776,0.00568424,2430.6,2430.4,1.13596718]
[1642903975265,0.00511581,2430.5,2430.4,1.13596718]
[1642903975648,0.00852636,2430.5,2430.4,1.13596718]
[1642903979381,0.76839994,2431.5,2430.9,1.22253548]
[1642903979582,0.76839994,2431.5,2430.4,1.13994615]
[1642903979784,0.00113684,2431.3,2430.4,1.13994615]
[1642903979982,0.00113684,2431.3,2430.5,0.00341055]
[1642903980381,0.00113684,2431.3,2431.1,1.11952095]
[1642903982183,0.27639994,2431.5,2431.4,0.00227368]
[1642903982584,0.27753679,2431.5,2431.4,0.00227368]
[1642903983635,1.52151,2431.8,2431.4,0.00227368]
[1642903984035,0.00113685,2431.7,2431.4,0.00227368]
[1642903984437,3.50341054,2432.1,2431.4,0.00227368]
[1642903984635,1.48982806,2431.9,2431.6,1.50916613]
[1642903984838,2.8,2431.7,2430.4,0.13353859]
[1642903985036,0.01274958,2431.1,2429.8,1.0]
[1642903985240,0.492,2431.0,2429.8,1.0]
[1642903985440,0.492,2431.0,2429.6,0.00375111]
[1642903985441,0.01276571,2430.1,2429.6,0.00375111]
[1642903985651,0.50476571,2430.1,2429.6,0.00375111]
[1642903986137,0.492,2430.1,2430.0,1.13225955]
[1642903986336,0.492,2430.7,2430.0,1.13225955]
[1642903986581,0.492,2430.7,2430.0,1.13510166]
[1642903986982,0.492,2430.7,2430.6,1.1519547]
[1642903987184,0.0022737,2430.9,2430.6,1.43613964]
[1642903987382,0.00113685,2430.7,2430.6,1.43613964]
[1642903987582,2.0592971,2431.6,2430.6,1.43613964]
[1642903987583,0.00170528,2430.8,2430.6,1.43613964]
[1642903987781,1.0603371,2431.6,2430.6,1.43613964]
[1642903987782,0.00113685,2430.7,2430.6,1.43613964]
[1642903990628,0.52274,2431.6,2430.7,2.8022737]
[1642903990828,0.52274,2431.6,2430.8,2.45913001]
[1642903990829,0.492,2431.6,2430.8,2.45913001]
[1642903991029,0.00454739,2431.5,2430.8,5.95993339]
[1642903991331,1.5522219,2431.9,2431.4,1.13836308]
[1642903991526,1.5522219,2431.9,2430.8,26.2344825]
[1642903991728,0.00454739,2431.5,2430.8,23.89]
[1642903992125,0.00397897,2431.4,2430.8,23.89]
[1642903992527,0.00341054,2431.3,2430.8,23.89]
[1642903992726,0.00341054,2431.3,2430.9,3.6110947]
[1642903992932,0.00284212,2431.2,2431.1,2.8]
[1642903993129,4.212e-05,2431.2,2431.1,10.41059863]
[1642903993327,0.00284212,2431.2,2431.1,34.90059863]
[1642903993526,0.00284212,2431.2,2431.1,35.90059863]
[1642903993983,0.00284212,2431.2,2431.1,42.28308621]
[1642903994179,0.01264644,2432.5,2432.2,1.28546452]
[1642903994379,0.04329644,2432.5,2432.3,0.28418494]
[1642903994580,1.55402108,2432.4,2432.3,0.28418494]
[1642903995380,0.00402108,2432.4,2432.3,0.28418494]
[1642904000027,0.00402108,2432.4,2432.3,2.33418494]
[1642904001026,0.00402108,2432.4,2432.3,4.71679245]
[1642904001230,0.00402108,2432.4,2432.3,5.45726978]
[1642904001480,2.5496399,2433.6,2432.4,2.8]
[1642904001481,0.03066,2433.5,2432.4,2.8]
[1642904001678,0.03066,2433.5,2432.6,23.89]
[1642904001881,0.01254853,2433.8,2432.7,2.76373507]
[1642904001882,0.00397896,2433.1,2432.7,2.76373507]
[1642904002080,0.00397896,2433.1,2432.7,26.65373507]
[1642904002279,0.43851907,2433.9,2432.8,2.2]
[1642904002478,0.43851907,2433.9,2433.7,1.09702148]
[1642904002878,0.43851907,2433.9,2433.2,1.40439115]
[1642904003077,0.43851907,2433.9,2433.0,3.7851]
[1642904003278,0.43851907,2433.9,2432.8,1.19893685]
[1642904003880,0.43851907,2433.9,2433.6,1.27702933]
[1642904005078,0.43851907,2433.9,2433.6,2.37994336]
[1642904005327,2.54897,2434.5,2433.6,2.37994336]
[1642904005526,0.492,2434.5,2433.6,2.37994336]
[1642904005726,0.00682108,2434.2,2433.6,3.56844336]
[1642904006130,0.00625266,2434.1,2434.0,0.13941516]
[1642904007628,0.00625266,2434.1,2434.0,1.33521666]
[1642904008129,0.00625266,2434.1,2434.0,3.23521666]
[1642904008530,0.00625266,2434.1,2434.0,5.60443077]
[1642904008729,0.492,2434.9,2434.1,2.6]
[1642904008979,0.492,2434.9,2434.6,1.20961687]
[1642904009181,0.492,2434.9,2433.9,0.0010318]
[1642904009182,0.00397896,2434.8,2434.7,1.23851185]
[1642904009382,0.00397896,2434.8,2433.9,0.0010318]
[1642904009788,0.49541054,2434.7,2433.9,0.0010318]
[1642904010179,0.08969393,2434.6,2433.9,0.0010318]
[1642904010382,0.492,2434.5,2433.9,0.0010318]
[1642904010583,1.02853,2434.3,2433.4,2.32049736]
[1642904010883,1.02853,2434.3,2433.5,0.00341054]
[1642904010884,0.50478918,2434.2,2433.5,0.00341054]
[1642904011281,0.45478918,2434.2,2433.4,0.00397896]
[1642904011480,0.45478918,2434.2,2433.4,1.49055406]
[1642904011778,0.45478918,2434.2,2433.8,1.5087676]
[1642904011979,0.45478918,2434.2,2433.8,1.4587676]
[1642904012179,0.05,2434.1,2433.9,0.00113685]
[1642904012384,0.492,2434.0,2433.9,0.00113685]
[1642904012846,0.492,2434.0,2433.3,0.17753679]
[1642904013047,0.492,2434.0,2433.1,1.2106]
[1642904013244,0.492,2434.0,2432.5,0.1643]
[1642904013245,0.00284211,2433.9,2432.5,0.1643]
[1642904013443,1.31743564,2433.5,2433.2,0.00113685]
[1642904013644,1.31743564,2433.5,2432.1,3.7586]
[1642904013645,2.8,2433.3,2432.1,3.7586]
[1642904013842,0.492,2433.2,2432.5,0.00397897]
[1642904014043,1.792,2433.2,2432.5,0.00397897]
[1642904014243,1.0290429,2433.0,2432.5,0.00397897]
[1642904014448,0.492,2432.9,2432.7,1.46464173]
[1642904014842,2.092,2432.9,2432.8,0.0022737]
[1642904015047,3.092,2432.9,2432.8,0.0022737]
[1642904015243,3.092,2432.9,2432.7,0.29988128]
[1642904015244,1.8,2432.8,2432.7,0.29988128]
[1642904015443,2.292,2432.8,2431.7,0.01271297]
[1642904015844,2.292,2432.8,2431.8,0.00568423]
[1642904016244,2.292,2432.8,2431.9,1.25386743]
[1642904016481,2.3340683,2432.7,2432.6,1.1736506]
[1642904016680,2.8260683,2432.7,2432.6,1.1736506]
[1642904016879,2.8260683,2432.7,2432.6,1.17478744]
[1642904018077,2.8260683,2432.7,2432.6,1.07478744]
[1642904021532,0.492,2432.7,2432.6,1.07478744]
[1642904022839,2.15,2432.6,2431.7,0.13037889]
[1642904023136,1.5212502,2432.5,2431.8,0.00454739]
[1642904023533,1.5212502,2432.5,2431.4,0.00682108]
[1642904023733,3.1212502,2432.5,2432.4,1.41958528]
[1642904023976,3.1212502,2432.5,2431.4,0.00682108]
[1642904023977,4.1212502,2432.5,2431.4,0.00682108]
[1642904024276,1.8,2432.4,2431.3,0.01211047]
[1642904024477,0.492,2432.3,2431.4,0.00568423]
[1642904024679,1.3957,2432.3,2431.4,0.00568423]
[1642904024879,1.40092509,2431.8,2431.4,1.40439589]
[1642904025080,0.492,2431.7,2431.4,1.39871166]
[1642904025280,0.492,2431.7,2431.1,0.02]
[1642904025281,2.25,2431.6,2431.1,0.02]
[1642904025485,0.492,2431.5,2431.1,0.02]
[1642904025681,0.492,2431.5,2431.2,0.00170527]
[1642904025978,1.492,2431.5,2431.2,0.00170527]
[1642904026179,0.492,2431.5,2431.2,0.00170527]
[1642904026377,0.492,2431.5,2431.3,1.53803549]
[1642904026578,0.492,2431.5,2431.2,0.00170527]
[1642904027184,0.45195577,2431.5,2431.2,0.00170527]
[1642904027582,3.67749975,2431.5,2431.2,0.00170527]
[1642904027845,0.45195577,2431.5,2431.3,1.21628601]
[1642904030542,0.45195577,2431.5,2431.2,0.00170527]
[1642904031579,0.45195577,2431.5,2430.5,1.33835786]
[1642904031780,0.00113685,2431.4,2430.5,1.33835786]
[1642904031978,0.492,2431.3,2430.6,0.00341054]
[1642904032778,1.89217097,2431.3,2430.9,1.40619622]
[1642904032979,0.492,2431.3,2430.9,1.40619622]
[1642904033178,0.492,2431.3,2431.0,0.00113685]
[1642904034079,2.1,2431.2,2430.9,0.20733307]
[1642904034279,2.1,2431.2,2430.3,3.6383]
[1642904034280,1.5218664,2431.1,2430.3,3.6383]
[1642904034482,1.5218664,2431.1,2430.2,3.7278]
[1642904034483,1.02987,2431.0,2430.2,3.7278]
[1642904034679,0.492,2430.9,2430.4,0.00341054]
[1642904035339,0.492,2430.9,2430.2,0.00454739]
[1642904035340,1.3845,2430.9,2430.2,0.00454739]
[1642904035543,2.41449,2430.9,2430.2,0.00454739]
[1642904035944,3.71449,2430.9,2430.2,0.00454739]
[1642904036138,1.03005,2430.7,2430.2,0.00454739]
[1642904036339,0.492,2430.6,2430.1,0.02]
[1642904036737,0.00170527,2430.5,2430.1,0.02]
[1642904037039,0.49313685,2430.4,2430.1,0.02]
[1642904037239,0.492,2430.3,2430.1,0.0001]
[1642904037437,2.5,2430.2,2429.9,0.02]
[1642904037645,0.492,2430.1,2429.9,0.02]
[1642904037838,0.492,2430.1,2430.0,0.00113684]
[1642904038040,1.492,2430.1,2430.0,0.00113684]
[1642904038443,0.492,2430.1,2430.0,0.00113684]
[1642904040880,0.492,2430.1,2429.9,0.02]
[1642904041083,0.492,2430.1,2429.8,0.02]
[1642904041084,0.492,2430.1,2429.2,1.18545842]
[1642904041481,0.492,2430.1,2429.9,1.50783583]
[1642904041881,0.492,2430.1,2429.3,0.00397897]
[1642904043754,3.71915982,2430.1,2429.3,0.00397897]
[1642904043951,2.0606294,2430.0,2429.3,0.00397897]
[1642904044151,0.492,2429.9,2429.3,0.00397897]
[1642904044350,0.492,2429.9,2429.0,0.00568424]
[1642904044550,1.03037,2429.8,2429.0,0.00568424]
[1642904044755,0.492,2429.7,2429.6,1.15636857]
[1642904045151,0.492,2429.7,2429.6,1.15864227]
[1642904047276,0.492,2429.7,2429.6,0.0022737]
[1642904047678,0.492,2429.7,2429.1,1.23096033]
[1642904047877,0.492,2429.7,2429.0,0.00568424]
[1642904048078,0.492,2429.7,2428.9,1.5]
[1642904048279,0.00341054,2429.6,2428.9,1.5]
[1642904048478,0.00341054,2429.6,2429.3,1.12665467]
[1642904048678,0.00284212,2429.5,2429.3,1.12665467]
[1642904049080,0.0022737,2429.4,2429.3,1.12665467]
[1642904051333,3.22750733,2430.0,2429.6,0.0828927]
[1642904051534,0.6604,2430.5,2429.6,0.0828927]
[1642904051731,0.00284211,2429.9,2429.6,0.0828927]
[1642904051934,0.00284211,2429.9,2429.5,1.4805474]
[1642904052133,0.00227369,2429.8,2429.7,0.45952103]
[1642904053733,0.00227369,2429.8,2429.5,1.4805474]
[1642904053982,0.492,2429.7,2429.5,1.4805474]
[1642904054183,0.49370527,2429.7,2429.5,1.4805474]
[1642904054379,0.00113684,2429.6,2429.5,1.4805474]
[1642904054582,0.49313684,2429.6,2429.5,1.4805474]
[1642904055082,0.49313684,2429.6,2429.5,2.87446101]
[1642904055485,0.49313684,2429.6,2429.5,2.72446101]
[1642904055682,0.00113684,2429.6,2429.5,2.72446101]
[1642904056083,0.00113684,2429.6,2429.5,2.92955101]
[1642904056284,0.1684,2430.5,2429.5,2.72446101]
[1642904056487,0.1684,2430.5,2430.3,0.19226209]
[1642904056686,2.04654739,2430.4,2430.3,0.19226209]